bitfinex/quotes_SOLUSD_20241126
["timestamp","ask_amount","ask_price","bid_price","bid_amount"]
[1732651634751,0.518436,229.77,229.64,20.0]
[1732651634948,0.518436,229.77,229.72,32.59385348]
[1732651635169,0.518436,229.77,229.71,32.59385348]
[1732651635459,0.518436,229.77,229.74,32.59385348]
[1732651635759,0.518436,229.77,229.76,32.59385348]
[1732651636065,0.518436,229.77,229.69,20.0]
[1732651636237,0.518436,229.77,229.64,24.3545]
[1732651636939,0.518436,229.77,229.64,20.0]
[1732651637136,0.518436,229.77,229.56,5.0]
[1732651637137,32.59385348,229.7,229.63,32.59385348]
[1732651637342,32.59385348,229.72,229.65,32.59385348]
[1732651638270,0.12549,229.76,229.65,32.59385348]
[1732651638471,32.59385348,229.73,229.66,32.59385348]
[1732651638765,32.59385348,229.73,229.6,20.0]
[1732651638766,32.59385348,229.7,229.63,32.59385348]
[1732651638960,0.518436,229.77,229.6,20.0]
[1732651639859,0.518436,229.77,229.65,32.59385348]
[1732651639860,32.59385348,229.72,229.65,32.59385348]
[1732651640065,32.59385348,229.73,229.65,32.59385348]
[1732651640253,32.59385348,229.74,229.67,32.59385348]
[1732651640457,32.59385348,229.72,229.65,32.59385348]
[1732651640656,20.0,229.75,229.59,32.59385348]
[1732651640859,28.776884,229.72,229.51,4.3571]
[1732651641087,0.12549,229.71,229.51,4.3571]
[1732651641250,23.902374,229.71,229.51,4.3571]
[1732651641569,30.3819,229.75,229.51,4.3571]
[1732651641747,0.12549,229.7,229.51,4.3571]
[1732651641942,32.59385348,229.68,229.61,32.59385348]
[1732651642142,32.59385348,229.69,229.61,32.59385348]
[1732651642343,32.59385348,229.65,229.58,32.59385348]
[1732651642939,20.0,229.67,229.51,21.7955]
[1732651643165,0.12549,229.69,229.51,4.3571]
[1732651643943,32.59385348,229.6,229.53,32.59385348]
[1732651644143,32.59385348,229.55,229.48,32.59385348]
[1732651644369,32.59385348,229.51,229.44,32.59385348]
[1732651644554,32.59385348,229.51,229.43,32.59385348]
[1732651644871,32.59385348,229.51,229.44,32.59385348]
[1732651645369,32.59385348,229.55,229.47,32.59385348]
[1732651645857,32.59385348,229.52,229.45,32.59385348]
[1732651646243,32.59385348,229.53,229.45,32.59385348]
[1732651646446,32.59385348,229.54,229.47,32.59385348]
[1732651647052,32.59385348,229.56,229.47,32.59385348]
[1732651647256,32.59385348,229.63,229.55,32.59385348]
[1732651647455,32.59385348,229.67,229.5,20.0]
[1732651647663,33.6463,229.75,229.5,20.0]
[1732651647664,32.59385348,229.73,229.66,32.59385348]
[1732651648048,5.518436,229.77,229.54,23.776884]
[1732651648249,32.59385348,229.65,229.58,32.59385348]
[1732651648974,10.0,229.74,229.46,32.59385348]
[1732651648975,32.59385348,229.62,229.54,32.59385348]
[1732651649154,32.59385348,229.62,229.55,32.59385348]
[1732651649351,32.59385348,229.65,229.57,32.59385348]
[1732651649674,1.3059,229.73,229.5,15.2503]
[1732651649855,5.0,229.75,229.62,32.59385348]
[1732651649856,32.59385348,229.69,229.62,32.59385348]
[1732651650049,1.3057,229.75,229.53,20.0]
[1732651650261,32.59385348,229.67,229.59,32.59385348]
[1732651650461,32.59385348,229.68,229.61,32.59385348]
[1732651650666,32.59385348,229.65,229.58,32.59385348]
[1732651650860,32.59385348,229.64,229.56,32.59385348]
[1732651651070,32.59385348,229.63,229.56,32.59385348]
[1732651651370,23.902374,229.73,229.62,32.59385348]
[1732651651565,32.59385348,229.69,229.62,32.59385348]
[1732651651767,32.59385348,229.68,229.61,32.59385348]
[1732651652149,0.12549,229.73,229.54,23.776884]
[1732651652150,32.59385348,229.67,229.54,23.776884]
[1732651652346,32.59385348,229.67,229.6,32.59385348]
[1732651652546,32.59385348,229.69,229.62,32.59385348]
[1732651652744,32.59385348,229.66,229.57,20.0]
[1732651652958,1.3059,229.72,229.6,32.59385348]
[1732651653156,32.59385348,229.64,229.5,15.2504]
[1732651653367,32.59385348,229.64,229.51,23.776884]
[1732651653574,0.12549,229.71,229.54,20.0]
[1732651653871,0.12549,229.72,229.54,20.0]
[1732651654175,32.59385348,229.68,229.6,32.59385348]
[1732651654470,23.776884,229.73,229.54,20.0]
[1732651654471,32.59385348,229.73,229.65,32.59385348]
[1732651654655,32.59385348,229.74,229.67,32.59385348]
[1732651654857,32.59385348,229.75,229.68,32.59385348]
[1732651655055,32.59385348,229.74,229.67,32.59385348]
[1732651655260,32.59385348,229.74,229.66,32.59385348]
[1732651655574,32.59385348,229.74,229.67,32.59385348]
[1732651655984,32.59385348,229.73,229.65,32.59385348]
[1732651656185,32.59385348,229.74,229.66,32.59385348]
[1732651656681,32.59385348,229.74,229.67,32.59385348]
[1732651656851,32.59385348,229.75,229.68,32.59385348]
[1732651657359,32.59385348,229.74,229.66,32.59385348]
[1732651658077,32.59385348,229.74,229.67,32.59385348]
[1732651658288,20.04156939,229.76,229.68,20.04156939]
[1732651658581,0.518436,229.77,229.59,15.2444]
[1732651658582,0.518436,229.77,229.75,20.04156939]
[1732651658771,0.518436,229.77,229.76,20.04156939]
[1732651658958,0.518436,229.77,229.67,20.0]
[1732651659163,0.518436,229.77,229.68,4.3538]
[1732651660179,0.518436,229.77,229.76,20.04156939]
[1732651661183,0.518436,229.77,229.74,20.04156939]
[1732651661362,0.518436,229.77,229.7,20.04156939]
[1732651661570,0.518436,229.77,229.71,20.04156939]
[1732651661775,0.518436,229.77,229.7,20.04156939]
[1732651662354,0.518436,229.77,229.73,20.04156939]
[1732651662685,0.518436,229.77,229.76,20.04156939]
[1732651663560,0.518436,229.77,229.73,20.04156939]
[1732651664286,0.518436,229.77,229.74,20.04156939]
[1732651664485,0.518436,229.77,229.76,20.04156939]
[1732651665364,0.518436,229.77,229.76,24.39386939]
[1732651665559,0.518436,229.77,229.76,48.17075339]
[1732651666167,0.518436,229.77,229.76,68.21232278]
[1732651666481,20.04156939,229.95,229.8,20.0]
[1732651666689,20.04156939,229.94,229.86,20.04156939]
[1732651667085,20.04156939,229.96,229.88,20.04156939]
[1732651668862,20.04156939,229.94,229.86,20.04156939]
[1732651669190,0.518436,230.0,229.82,20.0]
[1732651669385,0.518436,230.0,229.93,20.04156939]
[1732651670191,0.518436,230.0,229.9,20.04156939]
[1732651670403,0.518436,230.0,229.99,20.04156939]
[1732651671573,0.518436,230.0,229.99,24.38956939]
[1732651674370,0.518436,230.0,229.99,39.75817712]
[1732651674579,0.518436,230.0,229.99,63.53506112]
[1732651674777,0.518436,230.0,229.99,39.75817712]
[1732651675690,0.518436,230.0,229.88,66.9268]
[1732651675691,0.518436,230.0,229.97,35.41017712]
[1732651675876,0.518436,230.0,229.97,39.75837712]
[1732651676271,0.518436,230.0,229.99,35.41017712]
[1732651677389,0.518436,230.0,229.99,39.75817712]
[1732651680290,0.518436,230.0,229.95,4.3487]
[1732651680975,0.518436,230.0,229.98,35.41017712]
[1732651681175,0.518436,230.0,229.99,35.41017712]
[1732651681888,0.518436,230.0,229.99,39.75817712]
[1732651682088,0.518436,230.0,229.99,4.348]
[1732651682288,0.518436,230.0,229.92,46.28307712]
[1732651682289,0.518436,230.0,229.96,35.41017712]
[1732651682498,0.518436,230.0,229.97,35.41017712]
[1732651682695,35.92861312,230.0,229.93,39.75927712]
[1732651682997,35.92861312,230.0,229.94,35.41017712]
[1732651682998,0.518436,230.0,229.94,35.41017712]
[1732651683208,0.518436,230.0,229.96,35.41017712]
[1732651683578,0.518436,230.0,229.99,35.41017712]
[1732651683988,0.518436,230.0,229.99,39.75817712]
[1732651685185,0.518436,230.0,229.99,63.53506112]
[1732651685186,3.6e-05,230.0,229.99,63.53506112]
[1732651685597,3.6e-05,230.0,229.99,63.66055112]
[1732651686000,12.6613,230.32,230.05,5.0]
[1732651686175,12.6613,230.32,230.03,20.0]
[1732651686176,35.41017712,230.21,230.13,35.41017712]
[1732651686500,35.92861312,230.23,230.15,35.41017712]
[1732651686701,35.92861312,230.23,230.04,64.18706112]
[1732651686702,35.41017712,230.21,230.13,35.41017712]
[1732651686883,35.92861312,230.23,230.15,35.41017712]
[1732651687700,35.41017712,230.2,230.12,35.41017712]
[1732651688007,35.41017712,230.21,230.13,35.41017712]
[1732651688496,35.41017712,230.2,230.13,35.41017712]
[1732651688685,35.41017712,230.19,230.12,4.3454]
[1732651689105,0.518436,230.23,230.1,35.41017712]
[1732651689106,35.41017712,230.18,230.1,35.41017712]
[1732651689601,35.41017712,230.16,230.1,35.41017712]
[1732651689808,35.41017712,230.14,230.07,35.41017712]
[1732651690106,35.41017712,230.14,229.93,21.7453]
[1732651690107,35.41017712,230.11,230.03,35.41017712]
[1732651690784,35.41017712,230.13,230.06,35.41017712]
[1732651691203,35.41017712,230.13,230.06,39.75677712]
[1732651691408,35.41017712,230.11,230.04,39.75707712]
[1732651691705,35.41017712,230.07,230.0,4.3476]
[1732651692223,14.3991,230.17,230.0,4.3476]
[1732651692224,35.41017712,230.11,230.03,35.41017712]
[1732651692884,35.41017712,230.13,230.05,35.41017712]
[1732651693083,35.41017712,230.13,230.01,35.41017712]
[1732651693084,35.41017712,230.08,230.01,35.41017712]
[1732651693312,0.12549,230.12,229.98,39.75817712]
[1732651693313,35.41017712,230.06,229.98,39.75817712]
[1732651693806,35.41017712,230.1,230.02,35.41017712]
[1732651695315,35.41017712,230.1,230.02,39.75747712]
[1732651695491,35.41017712,230.08,230.0,35.41017712]
[1732651696110,35.41017712,230.12,230.04,35.41017712]
[1732651696307,34.45011651,230.17,230.08,21.78881651]
[1732651696508,34.45011651,230.17,230.1,21.78881651]
[1732651696509,12.6613,230.17,230.1,21.78881651]
[1732651697291,34.45011651,230.17,230.1,26.13461651]
[1732651697590,21.78881651,230.15,230.08,21.78881651]
[1732651698622,34.45011651,230.17,230.08,21.78881651]
[1732651698814,34.45011651,230.17,230.1,21.78881651]
[1732651699407,34.45011651,230.17,230.1,26.13471651]
[1732651699994,54.08291651,230.21,230.13,21.78881651]
[1732651700187,34.69395251,230.23,230.15,21.78881651]
[1732651701302,21.78881651,230.21,230.13,21.78881651]
[1732651701498,21.78881651,230.18,230.11,26.13441651]
[1732651701896,21.78881651,230.2,230.14,21.78881651]
[1732651702115,21.78881651,230.2,230.12,21.78881651]
[1732651702319,21.78881651,230.21,230.13,21.78881651]
[1732651703397,21.78881651,230.22,230.15,21.78881651]
[1732651703719,0.518436,230.23,230.2,21.78881651]
[1732651704021,0.518436,230.23,230.21,21.78881651]
[1732651704189,0.518436,230.23,230.19,21.78881651]
[1732651704390,0.518436,230.23,230.2,21.78881651]
[1732651705404,0.518436,230.23,230.12,20.0]
[1732651705405,0.518436,230.23,230.17,21.78881651]
[1732651706694,0.518436,230.23,230.16,21.78881651]
[1732651707091,0.518436,230.23,230.13,4.3453]
[1732651707092,0.518436,230.23,230.18,21.78881651]
[1732651707619,0.518436,230.23,230.16,21.78881651]
[1732651708117,22.30725251,230.23,230.16,21.78881651]
[1732651708700,0.518436,230.23,230.16,21.78881651]
[1732651709519,0.518436,230.23,230.2,21.78881651]
[1732651710405,0.518436,230.23,230.22,21.78881651]
[1732651711030,22.30725251,230.23,230.15,21.78881651]
[1732651711216,22.30725251,230.23,230.17,21.78881651]
[1732651711217,0.518436,230.23,230.17,21.78881651]
[1732651711521,0.518436,230.23,230.19,21.78881651]
[1732651711896,0.518436,230.23,230.12,15.2093]
[1732651712096,0.518436,230.23,230.18,21.78881651]
[1732651712910,0.518436,230.23,230.19,21.78881651]
[1732651713316,0.518436,230.23,230.18,21.78881651]
[1732651713525,0.518436,230.23,230.17,21.78881651]
[1732651713734,0.518436,230.23,230.18,21.78881651]
[1732651714513,0.518436,230.23,230.19,21.78881651]
[1732651715307,0.518436,230.23,230.21,21.78881651]
[1732651715508,0.518436,230.23,230.22,21.78881651]
[1732651715713,0.518436,230.23,230.21,21.78881651]
[1732651715914,0.518436,230.23,230.19,21.78881651]
[1732651716426,0.518436,230.23,230.18,21.78881651]
[1732651717625,0.518436,230.23,230.19,21.78881651]
[1732651718008,0.518436,230.23,230.18,21.78881651]
[1732651719108,0.518436,230.23,230.19,21.78881651]
[1732651720529,0.518436,230.23,230.21,21.78881651]
[1732651720731,0.518436,230.23,230.22,21.78881651]
[1732651721118,0.518436,230.23,230.21,21.78881651]
[1732651721609,0.518436,230.23,230.2,21.78881651]
[1732651722131,0.518436,230.23,230.22,21.78881651]
[1732651723334,0.518436,230.23,230.2,21.78881651]
[1732651723919,0.518436,230.23,230.21,21.78881651]
[1732651724308,0.518436,230.23,230.2,21.78881651]
[1732651724723,0.518436,230.23,230.14,21.78881651]
[1732651724724,21.78881651,230.22,230.14,21.78881651]
[1732651724931,21.78881651,230.21,230.14,21.78881651]
[1732651725112,0.518436,230.23,230.13,26.13411651]
[1732651725113,21.78881651,230.2,230.13,26.13411651]
[1732651725428,21.78881651,230.22,230.14,21.78881651]
[1732651725936,21.78881651,230.2,230.13,4.3453]
[1732651726434,21.78881651,230.18,230.11,21.78881651]
[1732651726631,21.78881651,230.17,230.1,21.78881651]
[1732651726828,21.78881651,230.19,230.11,21.78881651]
[1732651727033,21.78881651,230.2,230.12,21.78881651]
[1732651727330,21.78881651,230.2,230.13,21.78881651]
[1732651727623,0.518436,230.23,230.09,15.2114]
[1732651727624,21.78881651,230.21,230.14,21.78881651]
[1732651727818,21.78881651,230.2,230.12,21.78881651]
[1732651728023,21.78881651,230.2,230.13,21.78881651]
[1732651728208,21.78881651,230.2,230.12,21.78881651]
[1732651728411,13.61245074,230.19,230.11,13.61245074]
[1732651728716,13.61245074,230.19,230.11,17.95805074]
[1732651728925,13.61245074,230.17,230.11,4.3456]
[1732651729121,13.61245074,230.18,230.11,17.95805074]
[1732651729518,13.61245074,230.17,230.1,13.61245074]
[1732651730212,13.61245074,230.17,230.11,13.61245074]
[1732651730410,0.12549,230.22,230.11,13.61245074]
[1732651730411,13.61245074,230.19,230.11,13.61245074]
[1732651730631,13.61245074,230.19,230.11,17.95815074]
[1732651730831,13.61245074,230.18,230.11,17.95815074]
[1732651731161,13.61245074,230.19,230.11,17.95815074]
[1732651731635,13.61245074,230.17,230.1,13.61245074]
[1732651732332,13.61245074,230.19,230.12,13.61245074]
[1732651732517,13.61245074,230.19,230.11,13.61245074]
[1732651732829,13.61245074,230.19,230.12,13.61245074]
[1732651733009,13.61245074,230.19,230.11,13.61245074]
[1732651733205,0.518436,230.23,230.18,13.61245074]
[1732651733424,0.518436,230.23,230.21,13.61245074]
[1732651733910,0.518436,230.23,230.19,13.61245074]
[1732651735429,0.518436,230.23,230.2,13.61245074]
[1732651736638,0.518436,230.23,230.18,13.61245074]
[1732651737308,0.518436,230.23,230.2,13.61245074]
[1732651737730,0.518436,230.23,230.21,13.61245074]
[1732651739318,0.518436,230.23,230.2,17.95635074]
[1732651739530,0.518436,230.23,230.18,13.61245074]
[1732651739731,0.518436,230.23,230.19,13.61245074]
[1732651740037,0.518436,230.23,230.2,13.61245074]
[1732651740245,13.61245074,230.22,230.14,13.61245074]
[1732651740536,13.61245074,230.19,230.12,17.95795074]
[1732651740829,0.12549,230.22,230.11,17.95815074]
[1732651741030,0.12549,230.22,230.09,13.61245074]
[1732651741031,13.61245074,230.16,230.09,13.61245074]
[1732651741414,13.61245074,230.19,230.12,13.61245074]
[1732651741608,13.61245074,230.19,230.12,17.95795074]
[1732651741918,13.61245074,230.18,230.12,4.3455]
[1732651742108,13.61245074,230.17,230.1,13.61245074]
[1732651742317,13.61245074,230.18,230.1,13.61245074]
[1732651742610,13.61245074,230.18,230.11,13.61245074]
[1732651742907,13.61245074,230.19,230.11,13.61245074]
[1732651743317,13.61245074,230.18,230.11,13.61245074]
[1732651743515,13.61245074,230.17,230.1,13.61245074]
[1732651743841,13.61245074,230.11,230.01,13.61245074]
[1732651744011,13.61245074,230.09,230.02,4.3473]
[1732651744516,13.61245074,230.11,230.04,13.61245074]
[1732651744829,13.61245074,230.08,230.0,17.96015074]
[1732651745031,13.61245074,230.08,230.01,13.61245074]
[1732651745230,13.61245074,230.1,230.02,13.61245074]
[1732651745428,13.61245074,230.11,230.04,13.61245074]
[1732651745832,13.61245074,230.11,230.03,13.61245074]
[1732651746052,13.61245074,230.11,230.04,13.61245074]
[1732651746226,13.61245074,230.16,230.09,13.61245074]
[1732651746819,13.61245074,230.15,230.08,13.61245074]
[1732651748236,13.61245074,230.15,230.08,17.95865074]
[1732651748915,13.61245074,230.15,230.08,4.3462]
[1732651749121,13.61245074,230.11,230.04,4.3468]
[1732651749439,13.61245074,230.08,230.02,4.3474]
[1732651749617,13.61245074,230.06,229.99,17.96045074]
[1732651750020,18.61245074,230.16,230.01,13.61245074]
[1732651750021,13.61245074,230.08,230.01,13.61245074]
[1732651750342,13.61245074,230.09,230.01,13.61245074]
[1732651750522,13.61245074,230.12,230.04,13.61245074]
[1732651750718,13.61245074,230.11,230.03,13.61245074]
[1732651750918,13.61245074,230.12,230.04,13.61245074]
[1732651751717,13.61245074,230.12,230.05,4.3468]
[1732651751914,13.61245074,230.11,230.05,4.3468]
[1732651752339,13.61245074,230.1,230.05,4.3468]
[1732651752643,0.12549,230.17,230.05,17.95925074]
[1732651752936,13.61245074,230.12,230.05,17.95925074]
[1732651753123,13.61245074,230.11,230.05,4.3468]
[1732651753325,13.61245074,230.12,230.05,17.95925074]
[1732651753637,13.61245074,230.13,230.05,17.95925074]
[1732651753821,13.61245074,230.12,230.05,17.95925074]
[1732651754127,13.61245074,230.11,230.05,4.3468]
[1732651754524,1.86329,230.17,230.02,13.61245074]
[1732651754525,13.61245074,230.09,230.02,13.61245074]
[1732651754717,13.61245074,230.07,230.0,17.96025074]
[1732651754918,13.61245074,230.02,229.96,4.3485]
[1732651755550,13.61245074,230.06,229.98,13.61245074]
[1732651755734,13.61245074,230.08,230.01,4.3476]
[1732651755925,1.738,230.14,230.04,13.61245074]
[1732651755926,13.61245074,230.12,230.04,13.61245074]
[1732651756130,13.61245074,230.1,230.02,13.61245074]
[1732651756331,13.61245074,230.09,230.02,13.61245074]
[1732651756521,13.61245074,230.08,230.01,17.96005074]
[1732651757323,13.61245074,230.06,230.01,4.3476]
[1732651757753,13.61245074,230.07,230.0,4.3478]
[1732651758047,13.61245074,230.07,230.0,17.96025074]
[1732651758448,13.61245074,230.04,229.96,13.61245074]
[1732651758744,5.0,230.12,229.96,4.3485]
[1732651758745,13.61245074,230.02,229.96,4.3485]
[1732651758946,13.61245074,230.01,229.96,4.3485]
[1732651759124,13.61245074,230.04,229.96,17.96095074]
[1732651759325,13.61245074,230.03,229.96,4.3485]
[1732651759650,13.61245074,230.01,229.96,4.3485]
[1732651759827,13.61245074,230.03,229.96,13.61245074]
[1732651760026,13.61245074,230.04,229.97,13.61245074]
[1732651760255,13.61245074,230.03,229.96,13.61245074]
[1732651760546,13.61245074,230.06,229.98,13.61245074]
[1732651761032,13.61245074,230.05,229.97,13.61245074]
[1732651761220,46.60725074,230.07,230.0,13.61245074]
[1732651761426,13.61245074,230.07,230.0,13.61245074]
[1732651761643,13.61245074,230.1,230.02,13.61245074]
[1732651761847,13.61245074,230.1,230.03,4.3472]
[1732651762144,13.61245074,230.1,230.02,13.61245074]
[1732651762145,13.61245074,230.07,230.01,4.3474]
[1732651762647,13.61245074,230.07,229.9,66.7446]
[1732651762648,13.61245074,230.05,229.97,13.61245074]
[1732651762850,13.61245074,230.06,229.98,13.61245074]
[1732651763037,13.61245074,230.07,230.0,13.61245074]
[1732651763225,13.61245074,230.06,229.98,13.61245074]
[1732651763843,13.61245074,230.05,229.93,10.8728]
[1732651764045,13.61245074,230.05,229.98,13.61245074]
[1732651764349,13.61245074,230.08,230.01,13.61245074]
[1732651764733,13.61245074,230.08,230.0,13.61245074]
[1732651765234,13.61245074,230.06,230.0,13.61245074]
[1732651765629,13.61245074,230.08,230.0,13.61245074]
[1732651765832,13.61245074,230.08,230.01,4.3476]
[1732651766152,13.61245074,230.08,230.02,13.61245074]
[1732651766532,0.12549,230.12,230.02,13.61245074]
[1732651766533,13.61245074,230.1,230.02,13.61245074]
[1732651767444,32.9948,230.13,230.01,4.3476]
[1732651767445,46.60725074,230.13,230.06,13.61245074]
[1732651767647,13.61245074,230.13,230.05,13.61245074]
[1732651767848,13.61245074,230.12,230.04,13.61245074]
[1732651768932,13.61245074,230.12,230.06,13.61245074]
[1732651769247,13.61245074,230.14,230.06,13.61245074]
[1732651769430,13.61245074,230.13,230.05,13.61245074]
[1732651769628,13.61245074,230.14,230.07,13.61245074]
[1732651769848,13.61245074,230.15,230.08,17.95875074]
[1732651770154,13.61245074,230.14,230.08,4.3463]
[1732651770540,13.61245074,230.12,230.04,24.47965074]
[1732651770850,13.61245074,230.13,230.05,17.95925074]
[1732651771353,13.61245074,230.14,230.06,13.61245074]
[1732651771552,13.61245074,230.15,230.07,13.61245074]
[1732651772047,13.61245074,230.15,230.08,4.3463]
[1732651772746,13.61245074,230.14,230.08,4.3463]
[1732651772926,13.61245074,230.14,230.06,13.61245074]
[1732651773131,13.61245074,230.14,230.07,17.95895074]
[1732651773332,13.61245074,230.14,230.07,4.3465]
[1732651773546,13.61245074,230.1,230.03,13.61245074]
[1732651773754,13.61245074,230.09,230.02,13.61245074]
[1732651774645,13.61245074,230.05,229.97,10.8709]
[1732651774832,13.61245074,230.08,230.0,13.61245074]
[1732651775232,13.61245074,230.07,229.99,13.61245074]
[1732651775432,13.61245074,230.05,229.98,4.3482]
[1732651775647,13.61245074,230.04,229.98,4.3482]
[1732651775850,13.61245074,230.05,229.98,4.3482]
[1732651776240,13.61245074,230.06,229.98,17.96065074]
[1732651776935,13.61245074,230.06,229.99,13.61245074]
[1732651778142,13.61245074,230.06,230.0,4.3478]
[1732651778538,13.61245074,230.07,230.0,4.3478]
[1732651778739,13.61245074,230.08,230.0,17.96025074]
[1732651779344,13.61245074,230.07,230.0,4.3478]
[1732651779559,13.61245074,230.08,230.0,17.96025074]
[1732651780149,0.12549,230.11,230.0,17.96025074]
[1732651780150,13.61245074,230.07,230.0,4.3478]
[1732651781357,13.61245074,230.06,230.0,4.3478]
[1732651782036,13.61245074,230.05,229.99,4.348]
[1732651782240,13.61245074,230.04,229.99,4.348]
[1732651783565,13.61245074,230.07,229.99,17.96045074]
[1732651784257,13.61245074,230.1,230.03,13.61245074]
[1732651784462,4.344,230.21,229.99,15.218]
[1732651784463,13.61245074,230.12,230.04,13.61245074]
[1732651784661,13.61245074,230.13,230.05,13.61245074]
[1732651784840,13.61245074,230.11,230.04,13.61245074]
[1732651785041,13.61245074,230.11,230.03,13.61245074]
[1732651785661,13.61245074,230.1,230.03,13.61245074]
[1732651785854,13.61245074,230.11,230.03,13.61245074]
[1732651786688,13.61245074,230.11,230.04,13.61245074]
[1732651786875,13.61245074,230.11,230.03,13.61245074]
[1732651787758,13.61245074,230.11,230.04,4.347]
[1732651791202,13.61245074,230.08,230.04,4.347]
[1732651791471,13.61245074,230.06,229.98,17.96065074]
[1732651791847,13.61245074,230.07,229.99,13.61245074]
[1732651792361,13.61245074,230.06,229.98,13.61245074]
[1732651792764,13.61245074,230.07,229.99,13.61245074]
[1732651794154,13.61245074,230.07,230.0,4.3478]
[1732651796359,13.61245074,230.09,230.02,13.61245074]
[1732651796561,13.61245074,230.07,230.0,17.96025074]
[1732651796958,5.0,230.14,230.02,13.61245074]
[1732651797148,13.61245074,230.09,230.02,13.61245074]
[1732651797358,13.61245074,230.08,230.01,13.61245074]
[1732651797660,13.61245074,230.07,230.0,17.96025074]
[1732651798452,13.61245074,230.08,230.01,13.61245074]
[1732651798687,13.61245074,230.05,230.0,4.3478]
[1732651798871,13.61245074,230.04,229.97,13.61245074]
[1732651799075,13.61245074,230.02,229.98,4.3482]
[1732651799379,13.61245074,230.03,229.98,4.3482]
[1732651800070,13.61245074,230.04,229.97,13.61245074]
[1732651800251,12.3371,230.09,229.99,13.61245074]
[1732651800252,13.61245074,230.06,229.99,13.61245074]
[1732651800453,13.61245074,230.07,230.0,13.61245074]
[1732651800654,13.61245074,230.08,230.01,13.61245074]
[1732651800851,25.94955074,230.09,230.02,13.61245074]
[1732651801054,13.61245074,230.08,230.01,13.61245074]
[1732651801249,12.3371,230.09,229.95,20.0]
[1732651801250,13.61245074,230.07,229.95,20.0]
[1732651801485,13.61245074,230.02,229.95,13.61245074]
[1732651802073,13.61245074,230.03,229.97,4.3483]
[1732651802460,13.61245074,230.04,229.97,17.96075074]
[1732651802680,13.61245074,230.05,229.98,13.61245074]
[1732651805288,13.61245074,230.17,230.1,13.61245074]
[1732651805465,26.71405074,230.19,230.11,13.61245074]
[1732651805783,13.61245074,230.21,230.14,13.61245074]
[1732651806225,13.61245074,230.21,230.14,17.95745074]
[1732651806682,13.61245074,230.2,230.14,4.345]
[1732651807182,0.518436,230.23,230.14,13.61245074]
[1732651807183,13.61245074,230.21,230.14,13.61245074]
[1732651807480,13.61245074,230.18,230.11,13.61245074]
[1732651807880,13.61245074,230.21,230.08,60.8653]
[1732651808068,0.518436,230.23,230.19,13.61245074]
[1732651808266,0.518436,230.23,230.21,13.61245074]
[1732651808586,0.518436,230.23,230.19,13.61245074]
[1732651808766,0.518436,230.23,230.2,13.61245074]
[1732651809289,0.518436,230.23,230.21,4.3438]
[1732651810660,0.518436,230.23,230.2,13.61245074]
[1732651811063,13.61245074,230.21,230.15,4.3449]
[1732651811487,0.518436,230.23,230.16,13.61245074]
[1732651811488,14.13088674,230.23,230.16,13.61245074]
[1732651811786,14.13088674,230.23,230.15,17.95735074]
[1732651811787,13.61245074,230.22,230.15,17.95735074]
[1732651812164,13.61245074,230.2,230.13,30.6863]
[1732651812386,0.518436,230.23,230.13,4.3452]
[1732651812387,13.61245074,230.18,230.13,4.3452]
[1732651812686,0.518436,230.23,230.17,4.3446]
[1732651812886,0.518436,230.23,230.18,13.61245074]
[1732651813387,14.13088674,230.23,230.17,4.3446]
[1732651814066,0.518436,230.23,230.17,17.95705074]
[1732651814267,0.518436,230.23,230.17,28.81855074]
[1732651814771,0.518436,230.23,230.22,13.61245074]
[1732651815489,3.6e-05,230.23,230.22,57.50565074]
[1732651815692,13.61245074,230.39,230.25,20.0]
[1732651815986,13.61245074,230.37,230.3,13.61245074]
[1732651816696,13.61245074,230.36,230.29,13.61245074]
[1732651816990,13.61245074,230.33,230.26,17.95535074]
[1732651817294,13.61245074,230.31,230.26,4.3429]
[1732651817498,13.61245074,230.28,230.24,4.3431]
[1732651817668,13.61245074,230.26,230.24,4.3431]
[1732651817991,13.61245074,230.25,230.19,4.3442]
[1732651818208,13.61245074,230.24,230.19,4.3442]
[1732651818489,13.61245074,230.22,230.15,4.3449]
[1732651818703,13.61245074,230.27,230.2,13.61245074]
[1732651818889,13.61245074,230.28,230.2,13.61245074]
[1732651819268,13.61245074,230.29,230.22,13.61245074]
[1732651820067,13.61245074,230.25,230.17,13.61245074]
[1732651820368,13.61245074,230.26,230.18,13.61245074]
[1732651820572,13.61245074,230.24,230.17,13.61245074]
[1732651820803,13.61245074,230.23,230.18,4.3444]
[1732651822103,13.61245074,230.23,230.16,13.61245074]
[1732651822481,13.61245074,230.22,230.15,13.61245074]
[1732651822675,13.61245074,230.21,230.14,13.61245074]
[1732651822895,13.61245074,230.21,230.15,4.3449]
[1732651823289,13.61245074,230.22,230.15,4.3449]